fUSD/lending_fUSD_20251212
["ID","MTS","AMOUNT","RATE_DAILY","PERIOD"]
[398318504,1765535447265,-151.0,0.00038199,30]
[398318505,1765535447274,-151.0,0.00038199,31]
[398318506,1765535447282,-151.0,0.00038199,31]
[398318507,1765535447291,-151.0,0.00038199,31]
[398318508,1765535447300,-151.0,0.00038199,30]
[398318509,1765535447309,-151.0,0.00038199,30]
[398318510,1765535447318,-151.0,0.00038199,30]
[398318511,1765535447330,-151.0,0.00038199,30]
[398318512,1765535447351,-151.0,0.00038199,30]
[398318513,1765535447372,-151.0,0.00038199,30]
[398318514,1765535447381,-151.0,0.00038199,30]
[398318515,1765535447389,-151.0,0.00038199,30]
[398318516,1765535447398,-151.0,0.00038199,30]
[398318517,1765535447407,-151.0,0.00038199,30]
[398318518,1765535447417,-151.0,0.00038199,31]
[398318519,1765535447426,-151.0,0.00038199,31]
[398318520,1765535447435,-155.422324,0.00038199,31]
[398318521,1765535447444,-155.422324,0.00038199,31]
[398318522,1765535447453,-155.422324,0.00038199,31]
[398318523,1765535447463,-155.422324,0.00038199,31]
[398318524,1765535447471,-155.422324,0.00038199,31]
[398318525,1765535447480,-155.422324,0.00038199,31]
[398318526,1765535447490,-155.422324,0.00038199,31]
[398318527,1765535447499,-155.422324,0.00038199,31]
[398318528,1765535447508,-151.0,0.00038199,31]
[398318529,1765535447517,-151.0,0.00038199,31]
[398318530,1765535447526,-151.0,0.00038199,31]
[398318531,1765535447535,-151.0,0.00038199,31]
[398318532,1765535447544,-265.32,0.0003821,14]
[398318533,1765535447553,-1081.56340905,0.00038213,2]
[398318534,1765535447562,-500.0,0.00038232,30]
[398318535,1765535447572,-500.0,0.00038232,120]
[398318536,1765535447581,-1631.23,0.00038233,120]
[398318537,1765535447590,-500.0,0.0003825,30]
[398318538,1765535447599,-500.0,0.00038254,120]
[398318539,1765535447608,-500.0,0.00038254,120]
[398318540,1765535447619,-500.0,0.00038255,30]
[398318541,1765535447630,-234.77786949,0.00038255,10]
[398318542,1765535447640,-186.12099698,0.00038256,2]
[398318543,1765535447649,-1069.5,0.00038256,30]
[398318544,1765535447659,-541.72948796,0.00038256,2]
[398318545,1765535447668,-1487.059079,0.00038256,2]
[398318546,1765535447678,-827.51458259,0.00038262,2]
[398318547,1765535447687,-1500.0,0.00038262,2]
[398318548,1765535447696,-1500.0,0.00038262,2]
[398318549,1765535447706,-1500.0,0.00038262,2]
[398318550,1765535447715,-190.52258973,0.00038262,2]
[398318551,1765535447724,-1522.34101,0.00038262,2]
[398318552,1765535447733,-1081.56340905,0.00038266,2]
[398318553,1765535447742,-234.0,0.00038284,2]
[398318554,1765535447752,-500.0,0.00038291,2]
[398318555,1765535447761,-250.0,0.00038291,2]
[398318556,1765535447770,-500.0,0.00038299,30]
[398318557,1765535447780,-252.0,0.000383,18]
[398318558,1765535447789,-1000.0,0.000383,7]
[398318559,1765535447799,-156.0,0.00038307,5]
[398318560,1765535447808,-475.056569,0.00038308,120]
[398318561,1765535447817,-2000.0,0.00038308,120]
[398318562,1765535447827,-1081.56340905,0.00038319,2]
[398318563,1765535447837,-168.0,0.00038326,120]
[398318564,1765535447846,-2039.0,0.00038329,120]
[398318565,1765535447855,-500.0,0.00038332,120]
[398318566,1765535447864,-168.0,0.00038337,2]
[398318567,1765535447873,-275.57,0.00038344,7]
[398318568,1765535447882,-299.44738699,0.00038346,2]
[398318569,1765535447891,-299.44738699,0.00038346,2]
[398318570,1765535447900,-151.0,0.00038346,120]
[398318571,1765535447909,-500.0,0.00038352,120]
[398318572,1765535447919,-283.95826949,0.00038353,30]
[398318573,1765535447929,-500.0,0.00038353,30]
[398318574,1765535447938,-500.0,0.00038353,30]
[398318575,1765535447947,-500.0,0.00038353,30]
[398318576,1765535447956,-500.0,0.00038353,30]
[398318577,1765535447965,-500.0,0.00038353,120]
[398318578,1765535447974,-151.0,0.00038353,120]
[398318579,1765535447983,-1109.52,0.00038354,30]
[398318580,1765535447992,-1109.52,0.00038355,30]
[398318581,1765535448002,-1109.52,0.00038355,30]
[398318582,1765535448011,-1109.52,0.00038355,30]
[398318583,1765535448020,-1109.52,0.00038355,30]
[398318584,1765535448030,-1109.52,0.00038355,30]
[398318585,1765535448039,-847.83987431,0.00038355,30]
[398318586,1765535448050,-500.0,0.00038355,120]
[398318587,1765535448060,-500.0,0.00038355,120]
[398318588,1765535448069,-500.0,0.00038355,120]
[398318589,1765535448079,-469.96,0.00038355,120]
[398318590,1765535448088,-500.0,0.00038355,30]
[398318591,1765535448098,-364.2,0.00038355,30]
[398318592,1765535448107,-500.0,0.00038355,30]
[398318593,1765535448116,-526.49008822,0.00038355,30]
[398318594,1765535448125,-500.0,0.00038355,30]
[398318595,1765535448134,-500.0,0.00038355,30]
[398318596,1765535448143,-592.86077097,0.00038355,30]
[398318597,1765535448152,-500.0,0.00038355,30]
[398318598,1765535448161,-500.0,0.00038355,30]
[398318599,1765535448170,-500.0,0.00038355,30]
[398318600,1765535448427,-492.97672049,0.00038355,30]
[398318601,1765535448437,-500.0,0.00038355,120]
[398318602,1765535448446,-500.0,0.00038355,120]
[398318603,1765535448456,-500.0,0.00038355,120]
[398318604,1765535448465,-500.0,0.00038355,120]
[398318605,1765535448475,-500.0,0.00038355,120]
[398318606,1765535448485,-500.0,0.00038355,120]
[398318607,1765535448494,-500.0,0.00038355,120]
[398318608,1765535448504,-477.37963964,0.00038355,30]
[398318609,1765535448513,-500.0,0.00038355,30]
[398318610,1765535448523,-525.28407919,0.00038355,120]
[398318611,1765535448532,-500.0,0.00038355,30]
[398318612,1765535448542,-500.0,0.00038355,30]
[398318613,1765535448551,-500.0,0.00038355,120]
[398318614,1765535448560,-529.54,0.00038355,120]
[398318615,1765535448570,-500.0,0.00038355,30]
[398318616,1765535448579,-1001.936,0.00038355,2]
[398318617,1765535448589,-500.0,0.00038355,120]
[398318618,1765535448598,-500.0,0.00038355,120]
[398318619,1765535448608,-500.0,0.00038355,120]
[398318620,1765535448618,-500.0,0.00038355,120]
[398318621,1765535448627,-616.25422119,0.00038355,120]
[398318622,1765535448636,-679.926514,0.00038355,120]
[398318623,1765535448646,-679.926514,0.00038355,120]
[398318624,1765535448655,-679.926514,0.00038355,120]
[398318625,1765535448664,-679.926514,0.00038355,120]
[398318626,1765535448674,-500.0,0.00038355,120]
[398318627,1765535448683,-500.0,0.00038355,120]
[398318628,1765535448693,-175.85049055,0.00038355,120]
[398318629,1765535448702,-151.0,0.00038355,120]
[398318630,1765535448711,-151.0,0.00038355,120]
[398318631,1765535448721,-151.0,0.00038355,120]
[398318632,1765535448730,-151.45434891,0.00038355,20]
[398318633,1765535448739,-4106.93,0.00038355,120]
[398318634,1765535448749,-155.422324,0.00038355,120]
[398318635,1765535448758,-155.422324,0.00038355,120]
[398318636,1765535448768,-155.422324,0.00038355,120]
[398318637,1765535448778,-155.422324,0.00038355,120]
[398318638,1765535448787,-151.0,0.00038355,120]
[398318639,1765535448796,-151.0,0.00038355,120]
[398318640,1765535448805,-170.64053823,0.00038356,2]
[398318641,1765535448815,-17179.3748259,0.00038356,2]
[398318642,1765535448824,-6984.8388066,0.00038356,50]
[398318643,1765535448834,-17100.62091088,0.00038356,2]
[398318644,1765535448843,-10115.78210427,0.00038356,4]
[398318645,1765535448852,-1740.16669305,0.00038356,2]
[398318646,1765535448862,-3072.76921848,0.00038356,4]
[398318647,1765535448872,-500.0,0.00038356,30]
[398318648,1765535448881,-500.0,0.00038356,30]
[398318649,1765535448890,-500.0,0.00038356,30]
[398318650,1765535448899,-500.0,0.00038356,30]
[398318651,1765535448908,-500.0,0.00038356,30]
[398318652,1765535448918,-622.61138885,0.00038356,30]
[398318653,1765535448928,-520.519194,0.00038356,120]
[398318654,1765535448937,-500.0,0.00038356,120]
[398318655,1765535448947,-1161.66,0.00038356,30]
[398318656,1765535448956,-1161.73611843,0.00038356,30]
[398318657,1765535448966,-500.0,0.00038356,30]
[398318658,1765535448975,-500.0,0.00038356,120]
[398318659,1765535448985,-500.0,0.00038356,120]
[398318660,1765535448994,-500.0,0.00038356,120]
[398318661,1765535449004,-531.70653325,0.00038356,120]
[398318662,1765535449013,-2000.0,0.00038356,14]
[398318664,1765535449023,-500.0,0.00038356,120]
[398318665,1765535449033,-500.0,0.00038356,30]
[398318666,1765535449043,-502.15049516,0.00038356,30]
[398318667,1765535449052,-500.0,0.00038356,30]
[398318668,1765535449062,-500.92498214,0.00038356,30]
[398318669,1765535449071,-160.9022895,0.00038356,30]
[398318670,1765535449080,-502.33136632,0.00038356,30]
[398318671,1765535449089,-500.0,0.00038356,30]
[398318672,1765535449099,-520.84658913,0.00038356,30]
[398318673,1765535449110,-500.75620264,0.00038356,30]
[398318674,1765535449119,-500.0,0.00038356,30]
[398318675,1765535449128,-502.04177709,0.00038356,30]
[398318676,1765535449138,-500.0,0.00038356,30]
[398318677,1765535449147,-500.0,0.00038356,30]
[398318678,1765535449157,-500.0,0.00038356,30]
[398318679,1765535449166,-500.0,0.00038356,30]
[398318680,1765535449176,-500.0,0.00038356,30]
[398318681,1765535449185,-512.53269423,0.00038356,30]
[398318682,1765535449196,-500.0,0.00038356,30]
[398318683,1765535449206,-500.0,0.00038356,30]
[398318684,1765535449216,-530.68529111,0.00038356,14]
[398318685,1765535449225,-531.72578676,0.00038356,30]
[398318686,1765535449238,-500.0,0.00038356,30]
[398318687,1765535449248,-500.0,0.00038356,30]
[398318688,1765535449258,-470.56719658,0.00038356,30]
[398318689,1765535449267,-500.0,0.00038356,30]
[398318690,1765535449277,-500.0,0.00038356,30]
[398318691,1765535449286,-500.0,0.00038356,30]
[398318692,1765535449296,-500.0,0.00038356,30]
[398318693,1765535449305,-500.0,0.00038356,30]
[398318694,1765535449315,-500.0,0.00038356,30]
[398318695,1765535449324,-500.0,0.00038356,30]
[398318696,1765535449334,-545.54854603,0.00038356,30]
[398318697,1765535449344,-500.0,0.00038356,30]
[398318698,1765535449353,-500.0,0.00038356,30]
[398318699,1765535449363,-500.0,0.00038356,30]
[398318700,1765535449372,-261.46901555,0.00038356,30]
[398318701,1765535449382,-500.0,0.00038356,30]
[398318702,1765535449392,-500.0,0.00038356,30]
[398318703,1765535449402,-500.0,0.00038356,30]
[398318704,1765535449411,-500.0,0.00038356,30]
[398318705,1765535449421,-500.0,0.00038356,30]
[398318706,1765535449430,-500.0,0.00038356,30]
[398318708,1765535449440,-500.0,0.00038356,30]
[398318709,1765535449451,-500.0,0.00038356,30]
[398318710,1765535449461,-500.0,0.00038356,30]
[398318711,1765535449470,-500.0,0.00038356,30]
[398318712,1765535449480,-500.0,0.00038356,30]
[398318713,1765535449490,-500.0,0.00038356,30]
[398318714,1765535449500,-500.0,0.00038356,30]
[398318715,1765535449510,-500.0,0.00038356,30]
[398318716,1765535449519,-500.0,0.00038356,30]
[398318717,1765535449528,-500.0,0.00038356,30]
[398318718,1765535449538,-500.0,0.00038356,30]
[398318719,1765535449549,-500.0,0.00038356,30]
[398318720,1765535449559,-500.0,0.00038356,30]
[398318721,1765535449568,-500.0,0.00038356,30]
[398318722,1765535449577,-500.0,0.00038356,30]
[398318723,1765535449587,-500.0,0.00038356,30]
[398318724,1765535449596,-500.0,0.00038356,30]
[398318725,1765535449606,-500.0,0.00038356,30]
[398318726,1765535449616,-504.13674205,0.00038356,30]
[398318727,1765535449625,-500.0,0.00038356,30]
[398318728,1765535449636,-500.0,0.00038356,16]
[398318729,1765535449645,-500.0,0.00038356,30]
[398318730,1765535449655,-500.0,0.00038356,30]
[398318731,1765535449664,-1824.08,0.00038356,30]
[398318732,1765535449673,-500.0,0.00038356,30]
[398318733,1765535449683,-500.0,0.00038356,30]
[398318734,1765535449693,-500.0,0.00038356,30]
[398318735,1765535449702,-500.0,0.00038356,30]
[398318736,1765535449712,-651.26,0.00038356,30]
[398318737,1765535449722,-500.0,0.00038356,30]
[398318738,1765535449733,-500.0,0.00038356,30]
[398318739,1765535449742,-500.0,0.00038356,5]
[398318740,1765535449752,-500.0,0.00038356,30]
[398318741,1765535449762,-500.0,0.00038356,30]
[398318742,1765535449772,-500.0,0.00038356,30]
[398318743,1765535449784,-500.0,0.00038356,30]
[398318744,1765535449793,-500.0,0.00038356,30]
[398318745,1765535449803,-500.0,0.00038356,30]
[398318746,1765535449813,-500.0,0.00038356,30]
[398318747,1765535449822,-500.0,0.00038356,30]
[398318749,1765535449832,-500.0,0.00038356,30]
[398318750,1765535449841,-500.0,0.00038356,30]
[398318751,1765535449851,-500.0,0.00038356,30]
[398318752,1765535449860,-500.0,0.00038356,30]
[398318753,1765535449870,-500.0,0.00038356,30]
[398318754,1765535449881,-500.0,0.00038356,30]
[398318755,1765535449892,-768.58,0.00038356,30]
[398318756,1765535449902,-500.0,0.00038356,30]
[398318757,1765535449911,-500.0,0.00038356,30]
[398318758,1765535449920,-500.0,0.00038356,30]
[398318759,1765535449930,-604.69,0.00038356,30]
[398318760,1765535449939,-500.0,0.00038356,30]
[398318761,1765535449949,-500.0,0.00038356,30]
[398318762,1765535449958,-500.0,0.00038356,30]
[398318763,1765535449967,-500.0,0.00038356,30]
[398318764,1765535449976,-500.0,0.00038356,30]
[398318765,1765535449986,-500.0,0.00038356,30]
[398318766,1765535449995,-500.0,0.00038356,30]
[398318767,1765535450004,-500.0,0.00038356,30]
[398318768,1765535450014,-500.0,0.00038356,30]
[398318769,1765535450023,-500.0,0.00038356,30]
[398318770,1765535450032,-1703.32,0.00038356,30]
[398318771,1765535450042,-601.55,0.00038356,7]
[398318772,1765535450051,-500.0,0.00038356,30]
[398318773,1765535450060,-500.0,0.00038356,30]
[398318774,1765535450070,-662.42,0.00038356,30]
[398318775,1765535450080,-693.68,0.00038356,30]
[398318776,1765535450090,-500.0,0.00038356,30]
[398318777,1765535450099,-501.54647759,0.00038356,30]
[398318778,1765535450109,-500.0,0.00038356,30]
[398318779,1765535450118,-500.0,0.00038356,30]
[398318780,1765535450127,-500.0,0.00038356,30]
[398318781,1765535450137,-500.0,0.00038356,30]
[398318782,1765535450147,-500.0,0.00038356,30]
[398318783,1765535450156,-500.0,0.00038356,30]
[398318784,1765535450165,-500.0,0.00038356,30]
[398318785,1765535450175,-1436.54,0.00038356,30]
[398318786,1765535450184,-500.0,0.00038356,30]
[398318787,1765535450193,-500.0,0.00038356,30]
[398318788,1765535450202,-500.0,0.00038356,30]
[398318789,1765535450212,-500.0,0.00038356,30]
[398318790,1765535450221,-637.07762566,0.00038356,30]
[398318791,1765535450232,-500.0,0.00038356,30]
[398318792,1765535450243,-500.0,0.00038356,30]
[398318793,1765535450252,-500.0,0.00038356,30]
[398318794,1765535450262,-500.0,0.00038356,30]
[398318795,1765535450271,-500.0,0.00038356,30]
[398318796,1765535450280,-500.0,0.00038356,30]
[398318797,1765535450290,-500.0,0.00038356,30]
[398318798,1765535450299,-500.0,0.00038356,30]
[398318799,1765535450308,-500.0,0.00038356,30]
[398318800,1765535450318,-500.0,0.00038356,30]
[398318801,1765535450327,-500.0,0.00038356,30]
[398318802,1765535450337,-500.0,0.00038356,30]
[398318803,1765535450346,-698.57,0.00038356,30]
[398318804,1765535450356,-500.0,0.00038356,30]
[398318805,1765535450365,-789.19,0.00038356,30]
[398318806,1765535450375,-500.0,0.00038356,30]
[398318807,1765535450386,-500.0,0.00038356,30]
[398318808,1765535450396,-500.0,0.00038356,30]
[398318809,1765535450406,-500.0,0.00038356,30]
[398318810,1765535450416,-627.23,0.00038356,30]
[398318811,1765535450426,-772.34,0.00038356,30]
[398318812,1765535450436,-500.0,0.00038356,30]
[398318813,1765535450446,-500.0,0.00038356,30]
[398318814,1765535450456,-552.15765651,0.00038356,30]
[398318815,1765535450467,-500.0,0.00038356,30]
[398318816,1765535450476,-500.0,0.00038356,30]
[398318817,1765535450486,-500.0,0.00038356,30]
[398318818,1765535450496,-500.0,0.00038356,30]
[398318819,1765535450506,-500.0,0.00038356,30]
[398318820,1765535450516,-741.68,0.00038356,30]
[398318821,1765535450527,-500.0,0.00038356,30]
[398318822,1765535450536,-500.0,0.00038356,30]
[398318823,1765535450547,-545.86,0.00038356,30]
[398318824,1765535450557,-625.45,0.00038356,30]
[398318825,1765535450567,-646.79,0.00038356,30]
[398318826,1765535450576,-377.53929568,0.00038356,30]
[398318827,1765535450586,-646.65,0.00038356,30]
[398318828,1765535450596,-500.0,0.00038356,30]
[398318829,1765535450606,-500.0,0.00038356,30]
[398318830,1765535450615,-500.0,0.00038356,30]
[398318831,1765535450625,-500.0,0.00038356,30]
[398318832,1765535450635,-500.0,0.00038356,30]
[398318833,1765535450645,-794.95,0.00038356,30]
[398318834,1765535450655,-500.0,0.00038356,30]
[398318835,1765535450665,-500.0,0.00038356,30]
[398318836,1765535450674,-687.17,0.00038356,30]
[398318837,1765535450684,-500.0,0.00038356,30]
[398318838,1765535450693,-500.0,0.00038356,30]
[398318839,1765535450703,-500.0,0.00038356,30]
[398318840,1765535450713,-500.0,0.00038356,30]
[398318841,1765535450722,-500.0,0.00038356,30]
[398318842,1765535450733,-885.09,0.00038356,30]
[398318843,1765535450837,-500.0,0.00038356,30]
[398318844,1765535450847,-1097.95,0.00038356,30]
[398318845,1765535450857,-500.0,0.00038356,30]
[398318846,1765535450870,-602.53509795,0.00038356,30]
[398318847,1765535450880,-500.0,0.00038356,30]
[398318848,1765535450889,-500.0,0.00038356,30]
[398318849,1765535450899,-837.55,0.00038356,30]
[398318850,1765535450909,-285.59290468,0.00038356,30]
[398318851,1765535450919,-500.0,0.00038356,30]
[398318852,1765535450928,-540.22,0.00038356,30]
[398318853,1765535450937,-500.0,0.00038356,30]
[398318854,1765535450946,-500.0,0.00038356,30]
[398318855,1765535450956,-500.0,0.00038356,30]
[398318856,1765535450965,-500.0,0.00038356,30]
[398318857,1765535450975,-500.0,0.00038356,30]
[398318858,1765535450985,-500.0,0.00038356,30]
[398318859,1765535450995,-500.0,0.00038356,30]
[398318860,1765535451005,-519.63,0.00038356,30]
[398318861,1765535451014,-500.0,0.00038356,30]
[398318862,1765535451024,-500.0,0.00038356,30]
[398318863,1765535451034,-500.0,0.00038356,30]
[398318864,1765535451043,-1294.43,0.00038356,30]
[398318865,1765535451053,-500.0,0.00038356,30]
[398318866,1765535451062,-500.0,0.00038356,30]
[398318867,1765535451071,-500.0,0.00038356,30]
[398318868,1765535451081,-1011.88,0.00038356,30]
[398318869,1765535451090,-313.51496355,0.00038356,30]
[398318870,1765535451376,-186.48503645,0.00038356,30]
[398318871,1765535451386,-500.0,0.00038356,30]
[398318872,1765535451395,-500.0,0.00038356,30]
[398318873,1765535451405,-500.0,0.00038356,30]
[398318874,1765535451414,-567.65654687,0.00038356,30]
[398318875,1765535451424,-500.0,0.00038356,30]
[398318876,1765535451433,-501.9454564,0.00038356,30]
[398318877,1765535451443,-500.0,0.00038356,30]
[398318878,1765535451452,-266.71276713,0.00038356,30]
[398318927,1765535965758,155.76,0.00013699,2]
[398318930,1765536046380,1470.96009206,0.00018,3]
[398319029,1765536631993,-155.76,0.00020951,2]
[398319030,1765536632004,-250.0,0.00020951,2]
[398319031,1765536632014,-195.0,0.00020951,2]
[398319032,1765536632024,-189.97294172,0.00020951,2]
[398319033,1765536632035,-250.0,0.00023046,2]
[398319034,1765536632045,-195.0,0.00023046,2]
[398319035,1765536632054,-250.0,0.00023046,2]
[398319036,1765536632064,-195.0,0.00023046,2]
[398319037,1765536632073,-253.29524297,0.00023046,2]
[398319038,1765536632083,-195.0,0.00023881,2]
[398319039,1765536632092,-203.41976555,0.00026252,2]
[398319040,1765536632103,-155.76,0.00028203,2]
[398319041,1765536632113,-159.77,0.00028276,2]
[398319042,1765536632123,-163.84,0.00029653,2]
[398319043,1765536632132,-189.97294172,0.00029999,2]
[398319044,1765536632142,-1200.0,0.00029999,2]
[398319045,1765536632152,-797.20910804,0.0003,2]
[398319046,1765536632164,-848.03089196,0.0003,2]
[398319047,1765536632174,-272.0,0.00031378,3]
[398319048,1765536632184,-300.0,0.00031378,3]
[398319049,1765536632193,-400.0,0.00031378,2]
[398319050,1765536632203,-1062.0,0.00031379,2]
[398319051,1765536632214,-1181.0,0.0003154,2]
[398319052,1765536632232,-3626.08471678,0.00032,120]
[398319053,1765536632244,-1174.01,0.00032991,2]
[398319054,1765536632254,-150.99,0.00032991,30]
[398319055,1765536632268,-4123.97,0.00032991,2]
[398319056,1765536632277,-150.99,0.00032991,2]
[398319057,1765536632288,-839.68967822,0.00033,120]
[398319058,1765536632300,-675.11460229,0.00033,120]
[398319059,1765536632316,-2111.28043627,0.00033,120]
[398319060,1765536632326,-150.0,0.00033524,2]
[398319061,1765536632336,-300.0,0.00033525,2]
[398319062,1765536632347,-200.0,0.00033525,2]
[398319063,1765536632357,-207.4,0.00033525,2]
[398319064,1765536632367,-215.0738,0.00033525,2]
[398319065,1765536632377,-223.0315306,0.00033525,2]
[398319066,1765536632386,-231.28369723,0.00033525,2]
[398319067,1765536632397,-239.84119403,0.00033525,2]
[398319068,1765536632407,-248.71531821,0.00033525,2]
[398319069,1765536632417,-257.91778498,0.00033525,2]
[398319070,1765536632428,-560.0,0.0003377,2]
[398319071,1765536632438,-3626.08471678,0.000339,120]
[398319072,1765536632448,-166.66,0.00034067,30]
[398319073,1765536632458,-150.0,0.00034496,4]
[398319074,1765536632468,-191.12818532,0.00034496,4]
[398319075,1765536632477,-156.04438028,0.00034496,4]
[398319076,1765536632487,-264.60302406,0.00034496,4]
[398319077,1765536632496,-150.0,0.00034496,4]
[398319078,1765536632507,-150.0,0.00034496,4]
[398319079,1765536632516,-205.71936407,0.00034496,4]
[398319080,1765536632526,-166.66,0.00034784,30]
[398319081,1765536632536,-3626.08471678,0.00035,120]
[398319082,1765536632548,-155.76,0.00035455,2]
[398319083,1765536632558,-166.66,0.00035502,30]
[398319084,1765536632567,-1397.0,0.00035616,30]
[398319085,1765536632577,-150.0,0.00035666,2]
[398319086,1765536632587,-1600.0,0.0003572,120]
[398319087,1765536632596,-19525.64,0.00035849,2]
[398319089,1765536632606,-616.09,0.00035867,2]
[398319091,1765536632615,-203.41976555,0.00035899,2]
[398319093,1765536632624,-309.44513746,0.00035998,15]
[398319095,1765536632634,-280.99482661,0.00035998,7]
[398319097,1765536632643,-500.0,0.00035998,7]
[398319099,1765536632653,-500.0,0.00035998,15]
[398319101,1765536632662,-500.0,0.00035998,15]
[398319103,1765536632672,-221.95403735,0.00035998,15]
[398319105,1765536632681,-500.0,0.00035998,15]
[398319107,1765536632691,-500.0,0.00035998,7]
[398319108,1765536632702,-249.14082449,0.00035998,15]
[398319110,1765536632713,-500.0,0.00035998,7]
[398319112,1765536632725,-500.0,0.00035998,15]
[398319114,1765536632735,-500.0,0.00035998,7]
[398319116,1765536632745,-500.0,0.00035998,15]
[398319118,1765536632755,-500.0,0.00035998,7]
[398319120,1765536632766,-500.0,0.00035998,7]
[398319122,1765536632775,-500.0,0.00035998,15]
[398319124,1765536632785,-500.0,0.00035998,15]
[398319126,1765536632796,-540.30956388,0.00035998,7]
[398319128,1765536632807,-500.0,0.00035998,15]
[398319130,1765536632816,-3626.08471678,0.00036,120]
[398319132,1765536632826,-165.0,0.00036,30]
[398319160,1765536632836,-166.66,0.00036219,30]
[398319166,1765536633212,-344.0,0.00036345,2]
[398319168,1765536633223,-250.0,0.00036501,2]
[398319170,1765536633233,-367.865,0.00036612,45]
[398319172,1765536633243,-274.5718,0.00036612,2]
[398319174,1765536633254,-1200.0,0.00036712,14]
[398319176,1765536633265,-500.0,0.00036712,14]
[398319178,1765536633276,-1000.0,0.00036712,14]
[398319180,1765536633286,-519.96092318,0.000368,30]
[398319182,1765536633297,-600.0,0.000368,30]
[398319184,1765536633306,-500.0,0.000368,30]
[398319186,1765536633317,-500.0,0.000368,30]
[398319188,1765536633327,-500.0,0.000368,30]
[398319190,1765536633336,-166.66,0.00036936,30]
[398319192,1765536633346,-500.0,0.0003695,14]
[398319194,1765536633359,-3626.08471678,0.000371,120]
[398319196,1765536633368,-168.0,0.00037351,2]
[398319198,1765536633379,-168.0,0.00037434,2]
[398319200,1765536633389,-1200.0,0.00037534,14]
[398319202,1765536633399,-500.0,0.00037534,14]
[398319204,1765536633409,-1000.0,0.00037534,14]
[398319206,1765536633419,-166.66,0.00037653,30]
[398319208,1765536633429,-151.0,0.00037957,2]
[398319210,1765536633438,-151.0,0.00037957,2]
[398319212,1765536633448,-151.0,0.00037957,2]
[398319214,1765536633458,-151.0,0.00037957,2]
[398319216,1765536633468,-151.0,0.00037957,2]
[398319218,1765536633478,-151.0,0.00037957,2]
[398319220,1765536633487,-151.0,0.00037957,2]
[398319222,1765536633497,-151.0,0.00037957,2]
[398319224,1765536633507,-151.0,0.00037957,2]
[398319226,1765536633517,-151.0,0.00037957,2]
[398319228,1765536633527,-157.82333405,0.00037957,2]
[398319230,1765536633537,-151.0,0.00037957,2]
[398319232,1765536633548,-174.41109352,0.00037979,15]
[398319234,1765536633558,-478.76734088,0.00037979,15]
[398319236,1765536633567,-184.71946785,0.00037979,15]
[398319238,1765536633578,-17158.74404271,0.0003798,2]
[398319240,1765536633587,-1000.0,0.00038055,2]
[398319242,1765536633598,-700.0,0.00038082,60]
[398319244,1765536633608,-700.0,0.00038082,60]
[398319246,1765536633620,-700.0,0.00038082,60]
[398319248,1765536633630,-400.0,0.00038082,60]
[398319250,1765536633640,-1000.0,0.00038082,120]